bitfinex-derivatives/quotes_BTCF0:USTF0_20241217
["timestamp","ask_amount","ask_price","bid_price","bid_amount"]
[1734471875013,0.047063,106250.0,106240.0,0.58215866]
[1734471875207,0.047063,106250.0,106240.0,0.22135866]
[1734471876016,0.047063,106250.0,106240.0,0.40601478]
[1734471876210,0.047063,106250.0,106240.0,0.50887661]
[1734471877917,0.46228163,106260.0,106250.0,0.047061]
[1734471878220,0.46228163,106260.0,106250.0,0.11285783]
[1734471878706,0.42898163,106260.0,106250.0,0.11285783]
[1734471880412,0.42898163,106260.0,106250.0,0.057061]
[1734471880812,0.48477846,106260.0,106250.0,0.057061]
[1734471882717,0.42898163,106260.0,106250.0,0.057061]
[1734471884925,0.42898163,106260.0,106250.0,0.11285783]
[1734471887019,0.42898163,106260.0,106250.0,0.057061]
[1734471887419,0.45978163,106260.0,106250.0,0.057061]
[1734471891728,0.45978163,106260.0,106250.0,0.11285783]
[1734471892222,0.41272363,106260.0,106250.0,0.11285783]
[1734471892818,0.05192363,106260.0,106250.0,0.11285783]
[1734471898525,0.15477646,106260.0,106250.0,0.01]
[1734471899429,0.09897963,106260.0,106250.0,0.11285783]
[1734471901834,0.15477646,106260.0,106250.0,0.057061]
[1734471902030,0.05192363,106260.0,106250.0,0.11285783]
[1734471902423,0.05192363,106260.0,106250.0,0.47365783]
[1734471903431,0.05192363,106260.0,106250.0,0.48247658]
[1734471904133,0.0309009,106260.0,106250.0,0.48247658]
[1734471905323,0.0634,106270.0,106260.0,0.047056]
[1734471905636,0.0634,106270.0,106260.0,0.11167158]
[1734471905929,0.0634,106270.0,106260.0,0.51944966]
[1734471906229,0.40925686,106290.0,106280.0,0.047047]
[1734471906428,0.03428419,106290.0,106280.0,0.10284383]
[1734471906629,0.46375802,106300.0,106280.0,0.10284383]
[1734471906839,0.40796119,106300.0,106290.0,0.047043]
[1734471907023,0.00012119,106300.0,106290.0,0.10283983]
[1734471907229,0.36092119,106300.0,106290.0,0.10283983]
[1734471907533,0.41671802,106300.0,106290.0,0.10283983]
[1734471907830,0.46375702,106300.0,106290.0,0.047043]
[1734471908237,0.36092119,106300.0,106290.0,0.10283983]
[1734471909937,0.46375702,106300.0,106290.0,0.047043]
[1734471910130,0.047043,106290.0,106280.0,0.047046]
[1734471910338,0.56003983,106290.0,106280.0,0.07957254]
[1734471912441,0.047052,106270.0,106260.0,0.4093568]
[1734471912629,0.047052,106270.0,106260.0,0.46515363]
[1734471913039,0.111452,106270.0,106260.0,0.46515363]
[1734471913235,0.143052,106270.0,106260.0,0.49755814]
[1734471913938,0.143052,106270.0,106260.0,0.44176131]
[1734471915025,0.143052,106270.0,106260.0,0.07945951]
[1734471915938,0.047056,106260.0,106250.0,0.07540147]
[1734471916640,0.407856,106260.0,106250.0,0.07540147]
[1734471917141,0.407856,106260.0,106250.0,0.057059]
[1734471919933,0.407856,106260.0,106250.0,0.01]
[1734471921539,0.407856,106260.0,106250.0,0.057061]
[1734471924935,0.3608,106260.0,106250.0,0.057061]
[1734471925635,0.407856,106260.0,106250.0,0.057061]
[1734471931037,0.047056,106260.0,106250.0,0.057061]
[1734471931237,0.407856,106260.0,106250.0,0.057061]
[1734471935049,0.047056,106260.0,106250.0,0.057061]
[1734471935348,0.407856,106260.0,106250.0,0.057061]
[1734471935941,0.407856,106260.0,106250.0,0.11283687]
[1734471937142,0.047056,106260.0,106250.0,0.11283687]
[1734471937337,0.407856,106260.0,106250.0,0.11283687]
[1734471937542,0.047056,106260.0,106250.0,0.11283687]
[1734471938050,0.407856,106260.0,106250.0,0.11283687]
[1734471941551,0.407856,106260.0,106250.0,0.057061]
[1734471942746,0.46363187,106260.0,106250.0,0.057061]
[1734471942954,0.46363187,106260.0,106250.0,0.01]
[1734471943838,0.83315174,106260.0,106250.0,0.01]
[1734471944147,0.047065,106240.0,106230.0,0.047066]
[1734471944357,0.407865,106240.0,106230.0,0.057066]
[1734471946438,0.407865,106240.0,106230.0,0.09746399]
[1734471947044,0.441165,106240.0,106230.0,0.09746399]
[1734471948858,0.441165,106240.0,106230.0,0.15323986]
[1734471950047,0.49694087,106240.0,106230.0,0.09746399]
[1734471951045,0.49694087,106240.0,106230.0,0.05039799]
[1734471951245,0.49694087,106240.0,106230.0,0.01]
[1734471952053,0.55271674,106240.0,106230.0,0.01]
[1734471953756,0.55271674,106240.0,106230.0,0.05707]
[1734471954253,0.91351674,106240.0,106230.0,0.05707]
[1734471954444,0.91351674,106240.0,106230.0,0.01]
[1734471954851,0.85774087,106240.0,106230.0,0.01]
[1734471956453,0.04707,106230.0,106220.0,0.04848478]
[1734471956765,0.4678705,106230.0,106220.0,0.05848478]
[1734471957257,0.52364637,106230.0,106220.0,0.05848478]
[1734471958059,0.52364637,106230.0,106220.0,0.01141178]
[1734471961849,0.57942224,106230.0,106220.0,0.01141178]
[1734471962051,0.52364637,106230.0,106220.0,0.01141178]
[1734471963450,0.57942224,106230.0,106220.0,0.01141178]
[1734471963858,0.047074,106220.0,106210.0,0.01]
[1734471964158,0.55162574,106220.0,106210.0,0.01]
[1734471968466,0.047078,106210.0,106200.0,0.02474121]
[1734471968761,0.58202974,106210.0,106200.0,0.02474121]
[1734471971765,0.62132806,106210.0,106200.0,0.02474121]
[1734471975763,0.50977632,106210.0,106200.0,0.02474121]
[1734471976061,0.56555219,106210.0,106200.0,0.02474121]
[1734471976766,0.56555219,106210.0,106200.0,0.07182421]
[1734471977459,0.08637632,106210.0,106200.0,0.07182421]
[1734471977657,0.047078,106210.0,106200.0,0.12760008]
[1734471980259,0.407878,106210.0,106200.0,0.12760008]
[1734471980771,0.3608,106210.0,106200.0,0.16102575]
[1734471982069,0.407878,106210.0,106200.0,0.16102575]
[1734471987259,0.407878,106210.0,106200.0,0.05577587]
[1734471987460,0.407878,106210.0,106200.0,0.10285887]
[1734471990965,0.047083,106200.0,106190.0,0.18079981]
[1734471991273,0.047083,106200.0,106190.0,0.23657568]
[1734471995375,0.047083,106200.0,106190.0,0.25657568]
[1734471997381,0.3608,106210.0,106200.0,0.047083]
[1734471997575,0.3608,106210.0,106200.0,0.10285887]
[1734472002090,0.407878,106210.0,106200.0,0.047083]
[1734472002397,0.439378,106210.0,106200.0,0.047083]
[1734472003197,0.49515387,106210.0,106200.0,0.047083]
[1734472003394,0.55925387,106210.0,106200.0,0.047083]
[1734472003795,0.503478,106210.0,106200.0,0.047083]
[1734472006197,0.503478,106210.0,106200.0,0.10285887]
[1734472014697,0.142678,106210.0,106200.0,0.10285887]
[1734472015991,0.0956,106210.0,106200.0,0.10285887]
[1734472017392,0.04266723,106210.0,106200.0,0.10285887]
[1734472017699,0.04266723,106210.0,106200.0,0.15863474]
[1734472018001,0.0312,106210.0,106200.0,0.10285887]
[1734472020790,0.062,106210.0,106200.0,0.10285887]
[1734472031215,0.062,106210.0,106200.0,0.12285887]
[1734472032811,0.062,106210.0,106200.0,0.13285887]
[1734472034804,0.062,106210.0,106200.0,0.18863474]
[1734472035005,0.3925,106220.0,106200.0,0.18863474]
[1734472035205,0.3925,106220.0,106210.0,0.10285387]
[1734472037213,0.56207311,106230.0,106210.0,0.10285387]
[1734472037408,0.56207311,106230.0,106220.0,0.047074]
[1734472040221,0.59357311,106230.0,106220.0,0.047074]
[1734472041510,0.64064711,106230.0,106210.0,0.08188703]
[1734472041710,0.05577587,106220.0,106210.0,0.08188703]
[1734472042608,0.58487124,106230.0,106210.0,0.08188703]
[1734472042609,0.59357311,106230.0,106210.0,0.12896303]
[1734472043018,0.64064611,106230.0,106210.0,0.12896303]
[1734472043222,0.05577587,106220.0,106210.0,0.08188503]
[1734472043420,0.64064611,106230.0,106210.0,0.08188403]
[1734472044017,0.64064611,106230.0,106210.0,0.12896003]
[1734472044215,0.59357311,106230.0,106210.0,0.08188403]
[1734472044413,0.53779724,106230.0,106220.0,0.047074]
[1734472045126,0.59357311,106230.0,106220.0,0.047074]
[1734472045726,0.53779724,106230.0,106220.0,0.047074]
[1734472045932,0.59357311,106230.0,106220.0,0.047074]
[1734472046416,0.53779724,106230.0,106220.0,0.047074]
[1734472046613,0.59357311,106230.0,106210.0,0.08188503]
[1734472046820,0.59357311,106230.0,106210.0,0.094151]
[1734472047623,0.59357311,106230.0,106210.0,0.047075]
[1734472047821,0.05577587,106220.0,106210.0,0.047075]
[1734472048827,0.59357311,106230.0,106210.0,0.047075]
[1734472050032,0.46364987,106220.0,106210.0,0.047075]
[1734472050623,0.407874,106220.0,106210.0,0.047075]
[1734472050824,0.59357411,106230.0,106220.0,0.047074]
[1734472051537,0.09501687,106230.0,106220.0,0.51942574]
[1734472051832,0.00141239,106240.0,106230.0,0.04707]
[1734472052133,0.438063,106250.0,106240.0,0.047065]
[1734472052331,0.438063,106250.0,106240.0,0.10284087]
[1734472052824,0.438063,106250.0,106240.0,0.10295679]
[1734472053537,0.438063,106250.0,106240.0,0.05577587]
[1734472054240,0.077263,106250.0,106240.0,0.10284087]
[1734472056528,0.438063,106250.0,106240.0,0.10284087]
[1734472056936,0.391,106250.0,106240.0,0.15861674]
[1734472057330,0.391,106250.0,106240.0,0.10284087]
[1734472057824,0.42256919,106260.0,106250.0,0.047061]
[1734472058037,6.919e-05,106260.0,106250.0,0.10283687]
[1734472059630,6.919e-05,106260.0,106250.0,0.047061]
[1734472060123,0.36086919,106260.0,106250.0,0.047061]
[1734472060935,0.41664506,106260.0,106230.0,0.52145052]
[1734472061243,0.46370306,106260.0,106240.0,0.10283987]
[1734472061423,0.49620306,106260.0,106240.0,0.10283987]
[1734472062838,0.44042719,106260.0,106250.0,0.05577587]
[1734472063028,0.44042719,106260.0,106250.0,0.10283687]
[1734472063228,0.39336919,106260.0,106250.0,0.10283687]
[1734472063429,6.919e-05,106260.0,106250.0,0.10283687]
[1734472064130,0.36086919,106260.0,106250.0,0.10283687]
[1734472064733,6.919e-05,106260.0,106250.0,0.13483687]
[1734472065142,0.36086919,106260.0,106250.0,0.13483687]
[1734472065529,6.919e-05,106260.0,106250.0,0.13483687]
[1734472066825,0.36086919,106260.0,106250.0,0.13483687]
[1734472067039,6.919e-05,106260.0,106250.0,0.13483687]
[1734472068036,0.36086919,106260.0,106250.0,0.13483687]
[1734472068536,0.36086919,106260.0,106250.0,0.17664429]
[1734472068932,0.36086919,106260.0,106250.0,0.53744429]
[1734472068933,6.919e-05,106260.0,106250.0,0.53744429]
[1734472069128,6.919e-05,106260.0,106250.0,0.56794429]
[1734472069341,6.919e-05,106260.0,106250.0,0.59884429]
[1734472069733,6.919e-05,106260.0,106250.0,0.23804429]
[1734472070338,6.919e-05,106260.0,106250.0,0.65462016]
[1734472070530,0.39351205,106280.0,106270.0,0.047052]
[1734472070738,0.39351205,106280.0,106270.0,0.10282787]
[1734472070936,0.44928792,106280.0,106270.0,0.047052]
[1734472071445,0.44928792,106280.0,106270.0,0.04712539]
[1734472072241,0.39351205,106280.0,106270.0,0.04712539]
[1734472072641,0.44928792,106280.0,106270.0,0.04712539]
[1734472074235,0.49633492,106280.0,106270.0,0.04712539]
[1734472076546,0.44928792,106280.0,106270.0,0.04712539]
[1734472076848,0.39351205,106280.0,106270.0,0.06712539]
[1734472077552,0.39351205,106280.0,106270.0,0.12290126]
[1734472077849,0.36221205,106280.0,106270.0,0.12290126]
[1734472078844,0.00141205,106280.0,106270.0,0.12290126]
[1734472079039,0.00141205,106280.0,106270.0,0.16537551]
[1734472080143,0.36221205,106280.0,106270.0,0.16537551]
[1734472082643,0.00141205,106280.0,106270.0,0.16537551]
[1734472082843,0.36221205,106280.0,106270.0,0.16537551]
[1734472084150,0.40925905,106280.0,106270.0,0.16537551]
[1734472086251,0.52081079,106280.0,106270.0,0.02007339]
[1734472086450,0.55121079,106280.0,106270.0,0.02007339]
[1734472086650,0.047056,106260.0,106250.0,0.047056]
[1734472086854,0.047061,106250.0,106240.0,0.08895229]
[1734472087044,0.34659109,106250.0,106240.0,0.08895229]
[1734472087244,0.34659109,106250.0,106240.0,0.14472816]
[1734472087957,0.39365209,106250.0,106240.0,0.08895229]
[1734472088648,0.047061,106250.0,106240.0,0.08895229]
[1734472088840,0.407861,106250.0,106240.0,0.17396233]
[1734472089446,0.3608,106250.0,106240.0,0.17396233]
[1734472089755,0.438257,106260.0,106250.0,0.047061]
[1734472091358,0.077457,106260.0,106250.0,0.047061]
[1734472093747,0.0304,106260.0,106250.0,0.047061]
[1734472093951,0.3912,106260.0,106250.0,0.047061]
[1734472094145,0.3608,106260.0,106250.0,0.13207104]
[1734472094349,0.3608,106260.0,106250.0,0.16367104]
[1734472094763,0.3608,106260.0,106250.0,0.17367104]
[1734472098248,0.468956,106270.0,106260.0,0.047056]
[1734472098860,0.108156,106270.0,106260.0,0.047056]
[1734472099764,0.468956,106270.0,106260.0,0.047056]
[1734472099964,0.55396604,106270.0,106250.0,0.0416]
[1734472100263,0.441056,106260.0,106250.0,0.05706]
[1734472100465,0.0332,106260.0,106250.0,0.05706]
[1734472101459,0.394,106260.0,106250.0,0.05706]
[1734472101656,0.0332,106260.0,106250.0,0.05706]
[1734472102764,0.394,106260.0,106250.0,0.05706]
[1734472102969,0.0332,106260.0,106250.0,0.05706]
[1734472103167,0.394,106260.0,106250.0,0.05706]
[1734472104473,0.0332,106260.0,106250.0,0.05706]
[1734472105166,0.394,106260.0,106250.0,0.05706]
[1734472106665,0.0332,106260.0,106250.0,0.05706]
[1734472106863,0.394,106260.0,106250.0,0.05706]
[1734472107465,0.0332,106260.0,106250.0,0.05706]
[1734472107768,0.394,106260.0,106250.0,0.05706]
[1734472107956,0.394,106260.0,106250.0,0.11283638]
[1734472108662,0.394,106260.0,106250.0,0.05706]
[1734472110174,0.394,106260.0,106250.0,0.11283638]
[1734472111171,0.0332,106260.0,106250.0,0.11283638]
[1734472111471,0.394,106260.0,106250.0,0.11283638]
[1734472112069,0.394,106260.0,106250.0,0.05706]
[1734472113666,0.394,106260.0,106240.0,0.55291521]
[1734472113865,0.394,106260.0,106250.0,0.05706]
[1734472115764,0.441056,106260.0,106250.0,0.05706]
[1734472115965,0.55260876,106260.0,106250.0,0.01]
[1734472116162,0.49683238,106260.0,106250.0,0.01]
[1734472118365,0.49683238,106260.0,106250.0,0.057061]
[1734472120771,0.49683238,106260.0,106250.0,0.01]
[1734472121765,0.49683238,106260.0,106250.0,0.057061]
[1734472122479,0.5277271,106260.0,106250.0,0.057061]
[1734472134179,0.49683238,106260.0,106250.0,0.057061]
[1734472135784,0.49683238,106260.0,106250.0,0.01]
[1734472136887,0.441056,106260.0,106250.0,0.01]
[1734472137585,0.441056,106260.0,106250.0,0.11283738]
[1734472137784,0.047056,106260.0,106250.0,0.11283738]
[1734472138192,0.047056,106260.0,106250.0,0.057061]
[1734472138386,0.46363238,106260.0,106250.0,0.057061]
[1734472138586,0.46363238,106260.0,106250.0,0.01]
[1734472142904,0.407856,106260.0,106250.0,0.01]
[1734472143204,0.407856,106260.0,106250.0,0.057061]
[1734472144306,0.52712938,106270.0,106260.0,0.047056]
[1734472144602,0.047056,106260.0,106250.0,0.05706]
[1734472144902,0.46363238,106260.0,106250.0,0.05706]
[1734472147001,0.46363238,106260.0,106250.0,0.01]
[1734472148494,0.46363238,106260.0,106250.0,0.057061]
[1734472152300,0.49453238,106260.0,106250.0,0.057061]
[1734472154102,0.13373238,106260.0,106250.0,0.057061]
[1734472154301,0.49453238,106260.0,106250.0,0.057061]
[1734472156316,0.55030876,106260.0,106250.0,0.01]
[1734472161721,0.5815819,106260.0,106250.0,0.01]
[1734472163018,0.9423819,106260.0,106250.0,0.01]
[1734472163211,0.99815828,106260.0,106250.0,0.01]
[1734472163408,0.9423819,106260.0,106240.0,0.047062]
[1734472163613,0.55271376,106250.0,106240.0,0.047062]
[1734472163815,0.55271376,106250.0,106240.0,0.057062]
[1734472164324,0.55271376,106250.0,106240.0,0.01]
[1734472165624,0.85271376,106250.0,106240.0,0.01]
[1734472166625,0.88421376,106250.0,106240.0,0.01]
[1734472169730,0.58421376,106250.0,106210.0,0.3608]
[1734472169929,0.05577638,106220.0,106210.0,0.3608]
[1734472170129,0.05577638,106220.0,106210.0,0.3708]
[1734472170429,0.46364938,106230.0,106220.0,0.047074]
[1734472172333,0.46364938,106230.0,106210.0,0.01]
[1734472172527,0.10285038,106220.0,106210.0,0.057077]
[1734472172928,0.10285038,106220.0,106210.0,0.450777]
[1734472173532,0.10285038,106220.0,106210.0,0.49840478]
[1734472174235,0.10285038,106220.0,106210.0,0.13760478]
[1734472174736,0.10285038,106220.0,106210.0,0.49840478]
[1734472176133,0.10285038,106220.0,106210.0,0.13760478]
[1734472177342,0.10285038,106220.0,106210.0,0.09052778]
[1734472178434,0.10285038,106220.0,106210.0,0.13760578]
[1734472179937,0.46365038,106220.0,106210.0,0.13760578]
[1734472180128,0.10285038,106220.0,106210.0,0.13760578]
[1734472182539,0.46365038,106220.0,106210.0,0.13760578]
[1734472183135,0.10285038,106220.0,106210.0,0.13760578]
[1734472183441,0.46365038,106220.0,106210.0,0.13760578]
[1734472183742,0.10285038,106220.0,106210.0,0.13760578]
[1734472184527,0.51942676,106220.0,106210.0,0.09052778]
[1734472184733,0.51942676,106220.0,106210.0,0.05762778]
[1734472185943,0.51942676,106220.0,106210.0,0.10470578]
[1734472186250,0.46365038,106220.0,106210.0,0.10470578]
[1734472189147,0.10285038,106220.0,106210.0,0.10470578]
[1734472189339,0.46365038,106220.0,106210.0,0.10470578]
[1734472195151,0.10285038,106220.0,106210.0,0.10470578]
[1734472196249,0.46365038,106220.0,106210.0,0.10470578]
[1734472198455,0.10285038,106220.0,106210.0,0.10470578]
[1734472199665,0.13535038,106220.0,106210.0,0.10470578]
[1734472200463,0.4216,106230.0,106210.0,0.52128216]
[1734472200667,0.46867,106230.0,106220.0,0.10285038]
[1734472200962,0.52444638,106230.0,106220.0,0.047074]
[1734472204961,0.43797,106230.0,106220.0,0.047074]
[1734472206170,0.440067,106240.0,106230.0,0.04707]
[1734472206363,0.49584338,106240.0,106230.0,0.05707]
[1734472208368,0.55161976,106240.0,106230.0,0.01]
[1734472217675,0.91241976,106240.0,106230.0,0.01]
[1734472220873,0.91241976,106240.0,106210.0,0.46365438]
[1734472221169,0.46365038,106230.0,106220.0,0.047073]
[1734472221472,0.46365038,106230.0,106220.0,0.057073]
[1734472222478,0.46365038,106230.0,106220.0,0.01]
[1734472222664,0.52835038,106230.0,106220.0,0.01]
[1734472230081,0.047074,106230.0,106220.0,0.057074]
[1734472230284,0.10285038,106230.0,106220.0,0.087074]
[1734472230574,0.10285038,106230.0,106220.0,0.04]
[1734472231667,0.46365038,106230.0,106220.0,0.04]
[1734472231874,0.46365038,106230.0,106220.0,0.01]
[1734472232282,0.49695038,106230.0,106220.0,0.01]
[1734472233073,0.52885038,106230.0,106220.0,0.01]
[1734472236779,0.58462676,106230.0,106220.0,0.01]
[1734472237387,0.58471477,106230.0,106220.0,0.01]
[1734472238385,0.047074,106220.0,106210.0,0.01]
[1734472238574,0.60136473,106220.0,106210.0,0.01]
[1734472238776,0.54558835,106220.0,106210.0,0.01]
[1734472240186,0.90638835,106220.0,106210.0,0.01]
[1734472244090,0.79483559,106220.0,106210.0,0.01]
[1734472244283,0.90638835,106220.0,106210.0,0.01]
[1734472244787,0.79483559,106220.0,106210.0,0.01]
[1734472244981,0.04283559,106220.0,106210.0,0.11285438]
[1734472245289,0.04283559,106220.0,106210.0,0.17385438]
[1734472245483,0.04283559,106220.0,106210.0,0.53465438]
[1734472246586,0.40796001,106230.0,106220.0,0.047074]
[1734472246790,8.801e-05,106230.0,106220.0,0.55142676]
[1734472246988,8.801e-05,106230.0,106220.0,0.85142676]
[1734472247682,0.18850001,106250.0,106220.0,0.85142676]
[1734472247891,0.18850001,106250.0,106230.0,0.49494138]
[1734472248891,0.18850001,106250.0,106240.0,6.591e-05]
[1734472252097,0.18850001,106250.0,106240.0,0.04713091]
[1734472253696,0.08566063,106250.0,106240.0,0.15868367]
[1734472253884,0.08424834,106250.0,106240.0,0.55098367]
[1734472255686,0.08424834,106250.0,106240.0,0.59823201]
[1734472257087,0.11228658,106260.0,106250.0,0.047061]
[1734472257287,0.11228658,106260.0,106250.0,0.58081376]
[1734472257488,0.11228658,106260.0,106250.0,0.88081376]
[1734472257687,7.852e-05,106270.0,106260.0,0.047056]
[1734472257892,7.852e-05,106270.0,106260.0,0.51940876]
[1734472260101,7.852e-05,106270.0,106260.0,0.79281138]
[1734472260799,0.00141186,106280.0,106260.0,0.87776676]
[1734472260996,0.00141186,106280.0,106270.0,0.52370738]
[1734472261690,0.507841,106300.0,106290.0,0.047043]
[1734472261893,0.147041,106300.0,106290.0,0.047043]
[1734472262694,0.147041,106300.0,106290.0,0.04715107]
[1734472262695,0.1,106300.0,106290.0,0.04715107]
[1734472262999,0.1,106300.0,106290.0,0.57786183]
[1734472263314,0.1,106300.0,106290.0,0.61106183]
[1734472263502,0.00010915,106310.0,106300.0,0.047039]
[1734472263704,0.00010915,106310.0,106300.0,0.52439438]
[1734472264598,0.00010915,106310.0,106300.0,0.439439]
[1734472264907,0.00010915,106310.0,106300.0,0.407839]
[1734472265095,0.36090915,106310.0,106300.0,0.047039]
[1734472265295,0.00010915,106310.0,106300.0,0.047039]
[1734472267804,0.45931123,106330.0,106320.0,0.04703]
[1734472267805,0.00141123,106330.0,106320.0,0.04703]
[1734472270005,0.4538,106340.0,106330.0,0.047025]
[1734472270209,0.093,106340.0,106330.0,0.13198038]
[1734472270396,0.093,106340.0,106330.0,0.047025]
[1734472270699,0.0611,106340.0,106330.0,0.047025]
[1734472270899,0.4219,106340.0,106330.0,0.047025]
[1734472271100,0.0611,106340.0,106320.0,0.42309842]
[1734472271410,0.0611,106340.0,106330.0,0.047025]
[1734472278109,0.0611,106340.0,106330.0,0.13198038]
[1734472279010,0.39168939,106350.0,106340.0,0.047021]
[1734472279216,0.45688939,106350.0,106340.0,0.047021]
[1734472279505,0.50390539,106350.0,106340.0,0.047021]
[1734472280905,0.09608939,106350.0,106340.0,0.13209542]
[1734472281499,0.09608939,106350.0,106340.0,0.04714004]
[1734472283708,0.45688939,106350.0,106340.0,0.04714004]
[1734472283902,0.50390539,106350.0,106340.0,0.04714004]
[1734472284107,0.14310539,106350.0,106340.0,0.04714004]
[1734472286112,0.50390539,106350.0,106340.0,0.04714004]
[1734472286518,0.14310539,106350.0,106340.0,0.04714004]
[1734472286708,0.50390539,106350.0,106340.0,0.04714004]
[1734472287318,0.45688939,106350.0,106340.0,0.04714004]
[1734472287516,0.09608939,106350.0,106340.0,0.04714004]
[1734472290214,0.09608939,106350.0,106340.0,0.08714347]
[1734472294536,0.14310539,106350.0,106340.0,0.08714347]
[1734472295136,0.03088939,106350.0,106340.0,0.17209885]
[1734472296043,8.939e-05,106350.0,106340.0,0.17209885]
[1734472298933,8.939e-05,106350.0,106340.0,0.53289885]
[1734472299532,8.939e-05,106350.0,106340.0,0.61785423]
[1734472299738,0.09811073,106370.0,106340.0,0.61785423]
[1734472300043,0.09811073,106370.0,106360.0,0.047012]
[1734472300830,0.09811073,106370.0,106360.0,0.057012]
[1734472301940,0.14511873,106370.0,106360.0,0.057012]
[1734472302142,0.50591873,106370.0,106360.0,0.057012]
[1734472302446,0.59087411,106370.0,106360.0,0.01]
[1734472303246,0.50591873,106370.0,106360.0,0.01]
[1734472303633,0.50591873,106370.0,106360.0,0.057012]
[1734472309653,0.59087411,106370.0,106360.0,0.01]
[1734472309942,0.047012,106360.0,106350.0,0.047015]
[1734472310147,0.407812,106360.0,106350.0,0.057015]
[1734472310341,0.49276738,106360.0,106350.0,0.057015]
[1734472311053,0.407812,106360.0,106350.0,0.057015]
[1734472311951,0.047012,106360.0,106350.0,0.057015]
[1734472313049,0.407812,106360.0,106350.0,0.057015]
[1734472313247,0.407812,106360.0,106350.0,0.01]
[1734472313452,0.36551992,106360.0,106350.0,0.01]
[1734472313643,0.407812,106360.0,106350.0,0.01]
[1734472313948,0.49276738,106360.0,106350.0,0.01]
[1734472315845,0.407812,106360.0,106350.0,0.057016]
[1734472316555,0.047012,106360.0,106350.0,0.057016]
[1734472316850,0.407812,106360.0,106350.0,0.057016]
[1734472317039,0.047012,106360.0,106350.0,0.057016]
[1734472317552,0.407812,106360.0,106350.0,0.057016]
[1734472322153,0.407812,106360.0,106350.0,0.09052012]
[1734472323147,0.3608,106360.0,106350.0,0.1754755]
[1734472323455,0.09811073,106370.0,106360.0,0.047012]
[1734472324158,0.09811073,106370.0,106360.0,0.13196738]
[1734472324355,0.0967,106370.0,106360.0,0.09495538]
[1734472324544,0.0967,106370.0,106360.0,0.14196738]
[1734472324747,0.0638,106370.0,106360.0,0.14196738]
[1734472324947,0.0329,106370.0,106360.0,0.057012]
[1734472325143,0.407805,106380.0,106370.0,0.047008]
[1734472325354,0.438605,106380.0,106370.0,0.047008]
[1734472327062,0.438605,106380.0,106360.0,0.0409]
[1734472327262,0.047008,106370.0,106360.0,0.087911]
[1734472327559,0.438606,106380.0,106360.0,0.087911]
[1734472329459,0.3916,106380.0,106360.0,0.087911]
[1734472329659,0.40293897,106370.0,106360.0,0.087911]
[1734472331653,0.3608,106370.0,106360.0,0.087911]
[1734472332167,0.438604,106380.0,106360.0,0.0409]
[1734472332352,0.438604,106380.0,106370.0,0.047008]
[1734472332864,0.0308,106380.0,106370.0,0.13196338]
[1734472333057,0.10920715,106390.0,106380.0,0.047003]
[1734472333361,0.10920715,106390.0,106380.0,0.14195838]
[1734472333857,0.10920715,106390.0,106380.0,0.057003]
[1734472334256,0.06220715,106390.0,106380.0,0.057003]
[1734472334454,0.06220715,106390.0,106380.0,0.14195838]
[1734472336359,0.06220715,106390.0,106380.0,0.057003]
[1734472337362,0.06220715,106390.0,106380.0,0.14195838]
[1734472337565,0.00010715,106390.0,106380.0,0.50283932]
[1734472337967,0.00010715,106390.0,106380.0,0.53483932]
[1734472338669,0.00010715,106390.0,106380.0,0.56857321]
[1734472339567,0.00010715,106390.0,106380.0,0.43661483]
[1734472339766,0.49286153,106390.0,106380.0,0.01008094]
[1734472339968,0.55516153,106390.0,106380.0,0.01008094]
[1734472341670,0.64011691,106390.0,106350.0,0.01832774]
[1734472341969,0.407812,106360.0,106350.0,0.047015]
[1734472342165,0.3608,106360.0,106350.0,0.01]
[1734472342364,0.55606738,106360.0,106350.0,0.01]
[1734472342758,0.55606738,106360.0,106350.0,0.0100667]
[1734472342967,0.047016,106350.0,106340.0,0.00141029]
[1734472343166,0.49277138,106350.0,106340.0,0.01141029]
[1734472343963,0.57772676,106350.0,106340.0,0.01151507]
[1734472344365,0.49277138,106350.0,106340.0,0.01151507]
[1734472345666,0.49277138,106350.0,106310.0,0.09885441]
[1734472345667,0.57772676,106350.0,106310.0,0.09885441]
[1734472345858,0.40783,106320.0,106310.0,0.09885441]
[1734472346064,0.40783,106320.0,106310.0,0.07600648]
[1734472346265,0.35494819,106320.0,106310.0,0.02897448]
[1734472346464,0.40197819,106320.0,106310.0,0.07600848]
[1734472346864,0.48693357,106320.0,106310.0,0.01008811]
[1734472348967,0.51823357,106320.0,106310.0,0.01008811]
[1734472363579,0.52408538,106320.0,106310.0,0.01008811]
[1734472371389,0.52408538,106320.0,106290.0,0.45735405]
[1734472371590,0.40783,106320.0,106310.0,0.057034]
[1734472372501,0.49278538,106320.0,106310.0,0.01]
[1734472372993,0.52448538,106320.0,106310.0,0.01]
[1734472376391,0.52448538,106320.0,106310.0,0.057034]
[1734472377099,0.5489542,106320.0,106310.0,0.057034]
[1734472377694,0.5489542,106320.0,106310.0,0.01]
[1734472377893,0.5489542,106320.0,106300.0,0.047037]
[1734472377894,0.047034,106310.0,106300.0,0.057037]
[1734472378097,0.407834,106310.0,106300.0,0.057037]
[1734472382606,0.15892184,106320.0,106310.0,0.047034]
[1734472382898,0.0317,106320.0,106310.0,0.10275702]
[1734472383100,0.0317,106320.0,106310.0,0.46355702]
[1734472383499,0.0317,106320.0,106310.0,0.10275702]
[1734472383696,0.0317,106320.0,106310.0,0.46355702]
[1734472383897,0.0317,106320.0,106310.0,0.10275702]
[1734472384205,0.0317,106320.0,106310.0,0.047034]
[1734472384996,0.07873,106320.0,106310.0,0.047034]
[1734472385306,0.43953,106320.0,106310.0,0.047034]
[1734472385599,0.03642339,106320.0,106310.0,0.047034]
[1734472385809,0.50939384,106330.0,106310.0,0.407834]
[1734472385810,0.53370338,106330.0,106310.0,0.407834]
[1734472385999,0.58073038,106330.0,106320.0,0.04703]
[1734472387203,0.471527,106330.0,106320.0,0.04703]
[1734472389611,0.471527,106330.0,106320.0,0.07131722]
[1734472390700,0.471527,106330.0,106320.0,0.04703]
[1734472391507,0.047031,106320.0,106310.0,0.047031]
[1734472391708,0.49272484,106320.0,106300.0,0.09682624]
[1734472391906,0.13192784,106310.0,106300.0,0.08156324]
[1734472392204,0.50174268,106310.0,106300.0,0.03452624]
[1734472392410,0.50174268,106310.0,106300.0,0.01]